fUSD/lending_fUSD_20250219
["ID","MTS","AMOUNT","RATE_DAILY","PERIOD"]
[353641772,1739977846060,-1304.91,0.00013319,2]
[353641774,1739977846070,-151.0,0.00013319,2]
[353641776,1739977846080,-1120.65,0.00013319,2]
[353641778,1739977846090,-500.0,0.00013319,2]
[353641780,1739977846100,-911.63,0.00013319,2]
[353641783,1739977846109,-500.0,0.00013319,2]
[353641785,1739977846118,-1094.12,0.00013319,2]
[353641788,1739977846127,-639.62,0.00013319,2]
[353641790,1739977846136,-583.26,0.00013319,2]
[353641792,1739977846145,-500.0,0.00013319,2]
[353641793,1739977846154,-1085.500275,0.00013319,2]
[353641795,1739977846163,-1085.500275,0.00013319,2]
[353641797,1739977846172,-1085.500275,0.00013319,2]
[353641799,1739977846182,-1085.500275,0.00013319,2]
[353641802,1739977846191,-861.52,0.00013319,2]
[353641804,1739977846201,-606.802916,0.00013319,2]
[353641806,1739977846210,-606.802916,0.00013319,2]
[353641807,1739977846219,-606.802916,0.00013319,2]
[353641809,1739977846229,-606.802916,0.00013319,2]
[353641811,1739977846239,-1221.93,0.00013319,2]
[353641813,1739977846248,-789.09,0.00013319,2]
[353641815,1739977846257,-151.0,0.00013319,2]
[353641817,1739977846267,-151.0,0.00013319,2]
[353641819,1739977846277,-1723.93,0.00013319,2]
[353641821,1739977846286,-721.44,0.00013319,2]
[353641823,1739977846295,-784.04,0.00013319,2]
[353641825,1739977846305,-594.79,0.00013319,2]
[353641827,1739977846314,-1160.0,0.00013319,2]
[353641829,1739977846324,-1307.94,0.00013319,2]
[353641831,1739977846333,-1053.09,0.00013319,2]
[353641833,1739977846342,-622.63,0.00013319,2]
[353641835,1739977846351,-497.884712,0.00013319,2]
[353641837,1739977846361,-497.884712,0.00013319,2]
[353641839,1739977846370,-400.73774349,0.00013319,2]
[353641842,1739977846383,-340.44225651,0.00013319,2]
[353641844,1739977846392,-497.884712,0.00013319,2]
[353641846,1739977846400,-497.884712,0.00013319,2]
[353641848,1739977846409,-736.14,0.00013319,2]
[353641850,1739977846418,-923.31,0.00013319,2]
[353641852,1739977846427,-500.0,0.00013319,2]
[353641853,1739977846436,-941.61,0.00013319,2]
[353641855,1739977846445,-535.97,0.00013319,2]
[353641857,1739977846454,-500.0,0.00013319,2]
[353641859,1739977846463,-151.0,0.00013319,2]
[353641861,1739977846473,-1145.75,0.00013319,2]
[353641863,1739977846482,-500.0,0.00013319,2]
[353641865,1739977846491,-151.0,0.00013319,2]
[353641867,1739977846500,-151.0,0.00013319,2]
[353641869,1739977846510,-1733.94,0.00013319,2]
[353641871,1739977846519,-1264.62831949,0.00013319,2]
[353641933,1739977847163,-1110.0,0.00013131,2]
[353641934,1739977847173,-500.0,0.00013313,2]
[353641962,1739977847453,-519.67,0.00013313,2]
[353641964,1739977847465,-204.71168051,0.00013319,2]
[353641965,1739977847478,-411.01841949,0.00013319,2]
[353641968,1739977847492,-485.25158051,0.00013319,2]
[353641970,1739977847501,-1093.12,0.00013319,2]
[353641972,1739977847510,-550.26006537,0.00013319,2]
[353641976,1739977847539,-500.0,0.00013313,2]
[353641978,1739977847550,-867.26993463,0.00013319,2]
[353641980,1739977847559,-500.0,0.00013319,2]
[353641982,1739977847569,-1834.99,0.00013319,2]
[353641984,1739977847579,-1390.95,0.00013319,2]
[353641986,1739977847588,-1647.04006537,0.00013319,2]
[353641988,1739977847600,-42.10993463,0.00013319,2]
[353641990,1739977847613,-500.0,0.00013319,2]
[353641992,1739977847625,-1348.8,0.00013319,2]
[353641994,1739977847634,-1000.43,0.00013319,2]
[353641996,1739977847644,-283.012925,0.00013319,2]
[353641998,1739977847653,-283.012925,0.00013319,2]
[353642000,1739977847663,-283.012925,0.00013319,2]
[353642002,1739977847672,-283.012925,0.00013319,2]
[353642004,1739977847682,-858.96,0.00013319,2]
[353642006,1739977847691,-500.0,0.00013319,2]
[353642008,1739977847700,-383.82315502,0.00013319,2]
[353642091,1739977848579,-151.0,0.00013313,2]
[353642093,1739977848590,-151.0,0.00013313,2]
[353642095,1739977848601,-2414.75731898,0.00013319,2]
[353642097,1739977848614,-2798.580474,0.00013319,2]
[353642099,1739977848625,-1211.98,0.00013319,2]
[353642101,1739977848635,-262.169109,0.00013319,2]
[353642103,1739977848646,-901.71,0.00013319,2]
[353642105,1739977848657,-1156.1,0.00013319,2]
[353642107,1739977848668,-165.472612,0.00013319,2]
[353642109,1739977848679,-165.472612,0.00013319,2]
[353642111,1739977848691,-1014.32,0.00013319,2]
[353642113,1739977848701,-502.01879298,0.00013319,2]
[353642114,1739977848711,-402.80348932,0.00013319,2]
[353642117,1739977848734,-151.0,0.00013318,2]
[353642119,1739977848745,-959.82651068,0.00013319,2]
[353642121,1739977848755,-1347.62,0.00013319,2]
[353642123,1739977848765,-198.003828,0.00013319,2]
[353642125,1739977848775,-154.54966132,0.00013319,2]
[353642232,1739978180523,5671.18,0.00020608,120]
[353642239,1739978527761,183.5,8.767e-05,2]
[353642240,1739978745277,-10000.0,9.727e-05,2]
[353642241,1739978746737,-1219.174706,9.727e-05,2]
[353642242,1739978746760,-163.68,9.776e-05,2]
[353642243,1739978746786,-8617.145294,0.0001,2]
[353642244,1739978747141,-10000.0,0.0001,2]
[353642245,1739978748208,-10000.0,0.0001,2]
[353642246,1739978749038,-10000.0,0.0001,2]
[353642247,1739978749907,-10000.0,0.0001,2]
[353642248,1739978750734,-10000.0,0.0001,2]
[353642249,1739978751530,-10000.0,0.0001,2]
[353642250,1739978752463,-10000.0,0.0001,2]
[353642251,1739978759329,-10000.0,0.0001,2]
[353642260,1739978937836,-481.77776542,9.828e-05,2]
[353642261,1739978937861,-3462.63490643,0.0001,2]
[353642262,1739978937884,-6055.58732815,0.0001,2]
[353642268,1739978938746,-10000.0,0.0001,2]
[353642269,1739978939657,-10000.0,0.0001,2]
[353642270,1739978940692,-10000.0,0.0001,2]
[353642271,1739978941426,-10000.0,0.0001,2]
[353642272,1739978942272,-10000.0,0.0001,2]
[353642273,1739978943225,-10000.0,0.0001,2]
[353642277,1739978978851,-7788.0,0.0001,2]
[353642298,1739979031937,-27113.7684186,0.0001,2]
[353642299,1739979032088,-1008.7217319,0.0001,2]
[353642300,1739979032100,-1620.4498239,0.0001,2]
[353642301,1739979032111,-590.59698803,0.0001,2]
[353642302,1739979032137,-322.92223885,0.0001,2]
[353642345,1739979037832,-880.82102011,0.0001,2]
[353642346,1739979037991,-2079.91369852,0.0001,2]
[353642347,1739979038003,-4987.94296,0.0001,2]
[353642550,1739979040144,-6075.29339263,0.0001,2]
[353642557,1739979040204,-2909.83520479,0.0001,2]
[353642559,1739979040214,-12482.16905879,0.0001,2]
[353642561,1739979040224,-755.0,0.0001,3]
[353642563,1739979040234,-150.0,0.0001,3]
[353642565,1739979040243,-795.84,0.00010276,2]
[353642567,1739979040253,-755.0,0.00010632,3]
[353642569,1739979040262,-150.0,0.000112,3]
[353642571,1739979040271,-755.0,0.00011263,3]
[353642573,1739979040283,-755.0,0.00011895,3]
[353642575,1739979040292,-1000.0,0.0001202,2]
[353642577,1739979040302,-162.36,0.00012121,2]
[353642579,1739979040312,-8032.65224299,0.00012151,2]
[353642581,1739979040323,-14607.42775701,0.00012151,2]
[353642583,1739979040333,-150.0,0.00012156,2]
[353642585,1739979040343,-150.0,0.00012156,2]
[353642587,1739979040353,-150.0,0.00012156,2]
[353642589,1739979040363,-150.0,0.00012156,2]
[353642591,1739979040373,-362.0454,0.00012163,2]
[353642593,1739979040383,-157.98,0.00012197,2]
[353642595,1739979040393,-250.0,0.00012216,2]
[353642597,1739979040403,-1500.0,0.00012263,2]
[353642599,1739979040421,-201.72,0.0001233,2]
[353642601,1739979040431,-150.0,0.000124,3]
[353642603,1739979040440,-492.32,0.00012518,2]
[353642605,1739979040450,-755.0,0.00012526,3]
[353642607,1739979040461,-795.84,0.0001254,2]
[353642609,1739979040472,-505.62,0.00012594,2]
[353642611,1739979040482,-300.0,0.000126,4]
[353642614,1739979040492,-600.0,0.000127,4]
[353642616,1739979040502,-492.94,0.00012702,2]
[353642617,1739979040512,-900.0,0.000128,4]
[353642619,1739979040521,-496.98,0.00012853,2]
[353642621,1739979040532,-1200.0,0.000129,4]
[353642623,1739979040542,-504.88,0.00013062,2]
[353642625,1739979040551,-505.85,0.00013075,2]
[353642628,1739979040560,-499.78,0.00013075,2]
[353642629,1739979040570,-507.97,0.00013075,2]
[353642632,1739979040581,-505.4,0.00013075,2]
[353642634,1739979040590,-432.31286095,0.00013103,2]
[353642636,1739979040600,-326.1969327,0.00013132,2]
[353642638,1739979040610,-462.3047,0.00013137,2]
[353642639,1739979040619,-5090.0,0.00013151,2]
[353642642,1739979040629,-504.76,0.00013156,2]
[353642643,1739979040639,-755.0,0.00013158,3]
[353642645,1739979040648,-2643.1379,0.00013164,2]
[353642647,1739979040657,-2045.8616,0.00013164,2]
[353642649,1739979040666,-3398.5293,0.00013165,2]
[353642652,1739979040676,-1568.1875,0.00013165,2]
[353642653,1739979040685,-2500.0,0.00013165,2]
[353642655,1739979040694,-1318.52036058,0.00013165,2]
[353642657,1739979040704,-992.93695294,0.00013165,2]
[353642659,1739979040714,-160.78932812,0.00013165,2]
[353642661,1739979040723,-309.33082793,0.00013165,2]
[353642663,1739979040733,-495.7,0.00013166,2]
[353642665,1739979040742,-490.88,0.00013182,2]
[353642667,1739979040752,-4000.0,0.0001319,2]
[353642669,1739979040761,-4000.0,0.000132,2]
[353642671,1739979040770,-497.55,0.00013208,2]
[353642673,1739979040780,-1318.52036056,0.00013211,2]
[353642675,1739979040790,-992.93695293,0.00013211,2]
[353642677,1739979040800,-5000.0,0.00013212,2]
[353642679,1739979040810,-495.26,0.00013213,2]
[353642681,1739979040819,-247.14410513,0.00013213,2]
[353642683,1739979040829,-1551.36,0.00013226,2]
[353642685,1739979040838,-182.49372792,0.00013241,2]
[353642687,1739979040847,-1318.52036056,0.00013256,2]
[353642689,1739979040857,-992.93695293,0.00013256,2]
[353642691,1739979040866,-2585.9,0.00013263,2]
[353642693,1739979040876,-2122.75,0.00013263,2]
[353642695,1739979040884,-2067.56,0.00013263,2]
[353642697,1739979040894,-2373.86,0.00013263,2]
[353642699,1739979040903,-2608.59,0.00013263,2]
[353642701,1739979040913,-519.11,0.00013263,2]
[353642703,1739979040923,-1305.09,0.00013263,2]
[353642704,1739979040932,-579.1,0.00013263,2]
[353642705,1739979040942,-500.0,0.00013263,2]
[353642706,1739979040952,-500.0,0.00013263,2]
[353642707,1739979040962,-1053.39,0.00013263,2]
[353642708,1739979040972,-1206.41,0.00013263,2]
[353642709,1739979040981,-500.0,0.00013263,2]
[353642710,1739979040991,-500.0,0.00013263,2]
[353642711,1739979041001,-500.0,0.00013263,2]
[353642713,1739979041011,-500.0,0.00013263,2]
[353642714,1739979041020,-1125.68,0.00013263,2]
[353642716,1739979041031,-2654.01,0.00013263,2]
[353642718,1739979041040,-516.95439571,0.00013263,2]
[353642720,1739979041049,-500.0,0.00013263,2]
[353642722,1739979041059,-513.86663154,0.00013263,2]
[353642724,1739979041068,-500.0,0.00013263,2]
[353642726,1739979041079,-500.0,0.00013263,2]
[353642728,1739979041087,-500.0,0.00013263,2]
[353642730,1739979041096,-274.80509249,0.00013263,2]
[353642733,1739979041108,-406.90490751,0.00013263,2]
[353642735,1739979041118,-105.56328246,0.00013263,2]
[353642759,1739979041341,-718.8912228,0.00013263,2]
[353642769,1739979041432,-501.31549474,0.00013263,2]
[353642771,1739979041442,-252.38400764,0.00013263,2]
[353642773,1739979041453,-247.61599236,0.00013263,2]
[353642775,1739979041462,-43.20100764,0.00013264,2]
[353642940,1739979043010,-828.41368654,0.00013264,2]
[353643008,1739979043781,-2758.80002799,0.00013264,2]
[353643011,1739979043792,-214.17997201,0.00013264,2]
[353643013,1739979043802,-1146.66997799,0.00013264,2]
[353643022,1739979043871,-1597.39002201,0.00013264,2]
[353643025,1739979043880,-1661.72,0.00013264,2]
[353643028,1739979043889,-1591.921854,0.00013264,2]
[353643031,1739979043899,-2556.08,0.00013264,2]
[353643034,1739979043909,-1787.97,0.00013264,2]
[353643036,1739979043918,-159.64705,0.00013264,2]
[353643038,1739979043927,-681.79,0.00013264,2]
[353643040,1739979043937,-152.680738,0.00013264,2]
[353643042,1739979043946,-1770.52,0.00013264,2]
[353643044,1739979043955,-1798.35,0.00013264,2]
[353643046,1739979043965,-1366.7,0.00013264,2]
[353643048,1739979043975,-2347.11,0.00013264,2]
[353643050,1739979043984,-500.0,0.00013264,2]
[353643052,1739979043994,-1634.529434,0.00013264,2]
[353643054,1739979044003,-4359.23,0.00013264,2]
[353643056,1739979044013,-917.49,0.00013264,2]
[353643058,1739979044023,-1587.86,0.00013264,2]
[353643060,1739979044033,-1891.62,0.00013264,2]
[353643062,1739979044043,-500.0,0.00013264,2]
[353643064,1739979044052,-2247.21,0.00013264,2]
[353643066,1739979044063,-2695.01,0.00013264,2]
[353643068,1739979044073,-1489.39,0.00013264,2]
[353643070,1739979044082,-1798.73,0.00013264,2]
[353643072,1739979044091,-1216.86,0.00013264,2]
[353643074,1739979044101,-2535.52,0.00013264,2]
[353643076,1739979044111,-3153.74,0.00013264,2]
[353643078,1739979044120,-1452.39,0.00013264,2]
[353643080,1739979044129,-1699.86,0.00013264,2]
[353643082,1739979044139,-500.0,0.00013264,2]
[353643084,1739979044148,-2868.99,0.00013264,2]
[353643086,1739979044157,-2327.42,0.00013264,2]
[353643088,1739979044167,-1045.35,0.00013264,2]
[353643090,1739979044176,-3302.78,0.00013264,2]
[353643092,1739979044185,-998.45,0.00013264,2]
[353643094,1739979044194,-1868.61,0.00013264,2]
[353643096,1739979044204,-1993.69,0.00013264,2]
[353643098,1739979044213,-2957.55,0.00013264,2]
[353643100,1739979044222,-4633.23,0.00013264,2]
[353643102,1739979044231,-3749.16,0.00013264,2]
[353643104,1739979044241,-2395.44,0.00013264,2]
[353643106,1739979044250,-500.0,0.00013264,2]
[353643108,1739979044260,-2406.07,0.00013264,2]
[353643110,1739979044270,-2243.7,0.00013264,2]
[353643112,1739979044283,-701.32530463,0.00013264,2]
[353643290,1739979046045,-602.9465585,0.00013263,2]
[353643292,1739979046056,-918.5334415,0.00013263,2]
[353643294,1739979046066,-500.0,0.00013263,2]
[353643296,1739979046076,-425.12159683,0.00013264,2]
[353643299,1739979046087,-348.547565,0.00013264,2]
[353643923,1739979417873,-281.0,0.0001149,2]
[353643924,1739979417895,-281.0,0.0001175,2]
[353643925,1739979417916,-281.0,0.0001201,2]
[353643926,1739979417940,-376.91,0.00012183,2]
[353643927,1739979417964,-281.0,0.0001227,2]
[353643928,1739979417985,-665.71276693,0.0001227,2]
[353643929,1739979418007,-1439.9,0.0001233,2]
[353643930,1739979418029,-150.0,0.00012332,2]
[353643931,1739979418050,-4296.88,0.00012334,2]
[353643932,1739979418071,-281.0,0.0001253,2]
[353643933,1739979418092,-150.0,0.00012639,2]
[353643934,1739979418115,-281.0,0.0001279,2]
[353643935,1739979418136,-156.385426,0.0001287,3]
[353643936,1739979418158,-550.0,0.00013,2]
[353643937,1739979418179,-281.0,0.0001306,2]
[353643938,1739979418201,-591.4683332,0.00013132,2]
[353643939,1739979418223,-12303.90006726,0.00013163,2]
[353643940,1739979418244,-491.4863,0.00013163,2]
[353643941,1739979418265,-2045.8616,0.00013163,2]
[353643942,1739979418287,-1406.2124,0.00013163,2]
[353643943,1739979418308,-437.9264,0.00013163,2]
[353643944,1739979418329,-150.0,0.00013164,2]
[353643945,1739979418351,-1000.0,0.00013164,2]
[353643946,1739979418372,-2274.1089,0.00013164,2]
[353643947,1739979418393,-38420.2811,0.00013165,2]
[353643948,1739979418416,-9565.859,0.00013165,2]
[353643949,1739979418437,-222.5747,0.00013165,2]
[353643950,1739979418458,-155.4149,0.00013165,2]
[353643951,1739979418479,-1000.0,0.00013165,2]
[353643952,1739979418500,-266.7769,0.00013165,2]
[353643953,1739979418521,-31057.1881,0.00013165,2]
[353643954,1739979418543,-799.8443,0.00013165,2]
[353643955,1739979418568,-623.30880661,0.00013165,2]
[353644004,1739979820662,152.95,8.767e-05,2]
[353644010,1739980232130,-824.95,0.00010175,2]
[353644011,1739980232141,-150.0,0.00011447,2]
[353644012,1739980232151,-1000.0,0.00011488,2]
[353644013,1739980232161,-234.66121931,0.00011601,2]
[353644014,1739980232171,-150.0,0.00011701,2]
[353644015,1739980232181,-234.66121931,0.00011785,2]
[353644016,1739980232190,-150.0,0.00011885,2]
[353644017,1739980232199,-1000.0,0.0001204,2]
[353644018,1739980232209,-1000.0,0.00012053,2]
[353644019,1739980232219,-184.31,0.0001209,2]
[353644020,1739980232229,-150.0,0.00012093,2]
[353644021,1739980232239,-14391.93243597,0.00012093,2]
[353644022,1739980232593,-0.00165403,0.00012093,2]
[353644024,1739980232606,-709.35239291,0.00012093,2]
[353644030,1739980232659,-896.44,0.00012093,2]
[353644032,1739980232671,-873.22351709,0.00012093,2]
[353644034,1739980232681,-150.0,0.00012156,2]
[353644035,1739980232691,-150.0,0.00012156,2]
[353644036,1739980232700,-154.91934717,0.00012156,2]
[353644037,1739980232710,-1555.8,0.00012189,2]
[353644038,1739980232719,-250.0,0.00012205,2]
[353644039,1739980232728,-150.0,0.00012234,2]
[353644040,1739980232738,-498.92,0.00012436,2]
[353644041,1739980232747,-824.95,0.00012439,2]
[353644042,1739980232757,-150.0,0.00012447,2]
[353644043,1739980232768,-150.0,0.00012469,2]
[353644044,1739980232776,-150.0,0.00012515,2]
[353644045,1739980232786,-498.32,0.00012551,2]
[353644046,1739980232796,-300.0,0.000126,4]
[353644047,1739980232806,-150.0,0.00012698,2]
[353644048,1739980232820,-600.0,0.000127,4]
[353644049,1739980232831,-500.67,0.00012724,2]
[353644050,1739980232840,-900.0,0.000128,4]
[353644052,1739980232850,-150.0,0.00012865,2]
[353644054,1739980232860,-3079.4675,0.000129,2]
[353644056,1739980232870,-1300.0,0.000129,4]
[353644057,1739980232880,-150.0,0.000129,2]
[353644058,1739980232892,-428.713,0.000129,2]
[353644059,1739980232901,-224.26049055,0.00012944,2]
[353644060,1739980232923,-270.87950945,0.00012944,2]
[353644061,1739980232932,-96910.40381208,0.00013,3]
[353644062,1739980232941,-507.64,0.00013009,2]
[353644063,1739980232951,-432.31286095,0.00013046,2]
[353644064,1739980232961,-491.03,0.00013075,2]
[353644065,1739980232970,-496.32,0.00013094,2]
[353644066,1739980232979,-11073.51006057,0.00013113,2]
[353644067,1739980232989,-492.95,0.00013131,2]
[353644068,1739980232999,-497.38,0.00013131,2]
[353644069,1739980233009,-504.96,0.00013132,2]
[353644070,1739980233021,-394.3122221,0.00013132,2]
[353644071,1739980233031,-495.6,0.00013147,2]
[353644072,1739980233041,-2500.0,0.00013153,2]
[353644073,1739980233051,-915.9178,0.00013154,2]
[353644074,1739980233061,-503.04,0.00013156,2]
[353644075,1739980233071,-8359.24205417,0.00013162,2]
[353644076,1739980233080,-308.73964506,0.00013162,2]
[353644077,1739980233090,-5000.0,0.00013163,2]
[353644078,1739980233101,-11073.51006051,0.00013164,2]
[353644079,1739980233111,-529.0,0.00013165,3]
[353644080,1739980233121,-151.0,0.00013165,3]
[353644081,1739980233130,-631.48725845,0.00013178,2]
[353644082,1739980233141,-8359.24205411,0.00013208,2]
[353644083,1739980233150,-156.42319536,0.00013213,2]
[353644084,1739980233160,-11073.51006051,0.00013215,2]
[353644085,1739980233170,-554.97,0.00013252,2]
[353644086,1739980233180,-1009.5,0.00013252,2]
[353644087,1739980233189,-1078.77,0.00013252,2]
[353644088,1739980233199,-500.0,0.00013253,2]
[353644089,1739980233209,-504.95343562,0.00013253,2]
[353644090,1739980233219,-500.0,0.00013253,2]
[353644091,1739980233228,-397.98628864,0.00013253,2]
[353644092,1739980233238,-500.0,0.00013253,2]
[353644093,1739980233247,-500.0,0.00013253,2]
[353644094,1739980233257,-500.0,0.00013253,2]
[353644095,1739980233270,-653.31,0.00013253,2]
[353644096,1739980233280,-500.0,0.00013253,2]
[353644097,1739980233290,-500.0,0.00013253,2]
[353644098,1739980233300,-500.0,0.00013253,2]
[353644099,1739980233310,-500.0,0.00013253,2]
[353644100,1739980233320,-500.0,0.00013253,2]
[353644101,1739980233329,-500.0,0.00013253,2]
[353644102,1739980233339,-508.96393282,0.00013253,2]
[353644103,1739980233349,-500.0,0.00013253,2]
[353644104,1739980233358,-500.0,0.00013253,2]
[353644105,1739980233368,-500.0,0.00013253,2]
[353644106,1739980233378,-2694.94,0.00013253,2]
[353644107,1739980233387,-500.0,0.00013253,2]
[353644108,1739980233397,-500.0,0.00013253,2]
[353644109,1739980233407,-500.0,0.00013253,2]
[353644110,1739980233417,-500.0,0.00013253,2]
[353644111,1739980233426,-500.0,0.00013253,2]
[353644112,1739980233436,-500.0,0.00013253,2]
[353644113,1739980233446,-500.0,0.00013253,2]
[353644114,1739980233455,-500.0,0.00013253,2]
[353644115,1739980233465,-250.59254345,0.00013253,2]
[353644116,1739980233475,-500.0,0.00013253,2]
[353644117,1739980233485,-500.0,0.00013253,2]
[353644118,1739980233494,-544.49,0.00013253,2]
[353644119,1739980233504,-500.0,0.00013253,2]
[353644120,1739980233514,-500.0,0.00013253,2]
[353644121,1739980233523,-500.0,0.00013253,2]
[353644122,1739980233532,-500.0,0.00013253,2]
[353644123,1739980233543,-500.0,0.00013253,2]
[353644124,1739980233552,-500.0,0.00013253,2]
[353644125,1739980233562,-500.0,0.00013253,2]
[353644126,1739980233573,-998.11,0.00013253,2]
[353644127,1739980233583,-500.0,0.00013253,2]
[353644128,1739980233592,-500.0,0.00013253,2]
[353644129,1739980233601,-500.0,0.00013253,2]
[353644130,1739980233610,-500.0,0.00013253,2]
[353644131,1739980233619,-500.0,0.00013253,2]
[353644132,1739980233629,-500.0,0.00013253,2]
[353644133,1739980233638,-500.0,0.00013253,2]
[353644134,1739980233648,-500.0,0.00013253,2]
[353644135,1739980233657,-500.0,0.00013253,2]
[353644136,1739980233667,-508.6192946,0.00013253,2]
[353644137,1739980233677,-657.65,0.00013253,2]
[353644138,1739980233687,-500.0,0.00013253,2]
[353644139,1739980233697,-500.0,0.00013253,2]
[353644140,1739980233706,-500.0,0.00013253,2]
[353644141,1739980233716,-500.0,0.00013253,2]
[353644142,1739980233726,-500.0,0.00013253,2]
[353644143,1739980233735,-500.0,0.00013253,2]
[353644144,1739980233745,-500.0,0.00013253,2]
[353644145,1739980233755,-500.0,0.00013253,2]
[353644146,1739980233764,-500.0,0.00013253,2]
[353644147,1739980233774,-500.0,0.00013253,2]
[353644148,1739980233785,-500.0,0.00013253,2]
[353644149,1739980233795,-708.38,0.00013253,2]
[353644150,1739980233806,-500.0,0.00013253,2]
[353644151,1739980233819,-500.0,0.00013253,2]
[353644152,1739980233829,-500.0,0.00013253,2]
[353644153,1739980233839,-500.0,0.00013253,2]
[353644154,1739980233850,-500.0,0.00013253,2]
[353644155,1739980233860,-500.0,0.00013253,2]
[353644156,1739980233870,-575.06,0.00013253,2]
[353644157,1739980233879,-500.0,0.00013253,2]
[353644158,1739980233889,-766.45,0.00013253,2]
[353644159,1739980234164,-1521.7,0.00013253,2]
[353644160,1739980234175,-500.0,0.00013253,2]
[353644161,1739980234184,-494.48604783,0.00013253,2]
[353644162,1739980234194,-500.0,0.00013253,2]
[353644163,1739980234203,-500.0,0.00013253,2]
[353644164,1739980234213,-2034.3,0.00013253,2]
[353644165,1739980234223,-500.0,0.00013253,2]
[353644166,1739980234232,-223.11091451,0.00013253,2]
[353644167,1739980234242,-500.0,0.00013253,2]
[353644168,1739980234252,-500.0,0.00013253,2]
[353644169,1739980234261,-500.0,0.00013253,2]
[353644170,1739980234272,-1427.34,0.00013253,2]
[353644171,1739980234283,-1981.41,0.00013253,2]
[353644172,1739980234292,-500.0,0.00013253,2]
[353644173,1739980234301,-500.0,0.00013253,2]
[353644174,1739980234311,-500.0,0.00013253,2]
[353644175,1739980234320,-500.0,0.00013253,2]
[353644176,1739980234330,-525.59601407,0.00013253,2]
[353644177,1739980234339,-1219.07,0.00013253,2]
[353644178,1739980234348,-500.0,0.00013253,2]
[353644179,1739980234358,-2274.95,0.00013253,2]
[353644180,1739980234367,-500.0,0.00013253,2]
[353644181,1739980234376,-500.0,0.00013253,2]
[353644182,1739980234386,-500.0,0.00013253,2]
[353644183,1739980234396,-500.0,0.00013253,2]
[353644184,1739980234405,-500.0,0.00013253,2]
[353644185,1739980234415,-2499.9,0.00013253,2]
[353644186,1739980234424,-3022.34,0.00013253,2]
[353644187,1739980234433,-500.0,0.00013253,2]
[353644188,1739980234443,-490.13728517,0.00013253,2]
[353644189,1739980234452,-500.0,0.00013253,2]
[353644190,1739980234463,-500.0,0.00013253,2]
[353644191,1739980234473,-500.0,0.00013253,2]
[353644192,1739980234484,-500.0,0.00013253,2]
[353644193,1739980234493,-500.0,0.00013253,2]
[353644194,1739980234503,-500.0,0.00013253,2]
[353644195,1739980234512,-500.0,0.00013253,2]
[353644196,1739980234524,-500.0,0.00013253,2]
[353644197,1739980234533,-500.0,0.00013253,2]
[353644198,1739980234543,-500.0,0.00013253,2]
[353644199,1739980234553,-500.0,0.00013253,2]
[353644200,1739980234562,-500.0,0.00013253,2]
[353644201,1739980234572,-2230.45,0.00013253,2]
[353644202,1739980234581,-500.0,0.00013253,2]
[353644203,1739980234590,-500.0,0.00013253,2]
[353644204,1739980234599,-500.0,0.00013253,2]
[353644205,1739980234608,-500.0,0.00013253,2]
[353644206,1739980234617,-956.85,0.00013253,2]
[353644207,1739980234627,-500.0,0.00013253,2]
[353644208,1739980234637,-500.0,0.00013253,2]